{"text_format":"1","workbook":"xlsx","n_sheets":10,"sheets":["MAPA DE PROCESOS","RECURSOS Y ESPACIOS","CONTROL DE CAMBIOS","AMENAZAS","INFORMACIÓN DE LA SEDE","METODOLOGÍA","SISTEMAS","PERSONAS","RECURSOS","PLAN DE EVACUACIÓN"],"not_rendered":{"charts":0,"images":37,"macros":1,"external_links":0,"defined_names":67,"comments":3,"pivot_tables":0},"unopened":[],"bounds":{"document_bytes":16777216,"sheet_cells":100000,"rows_first":2000,"rows_last":500,"rows_between":2000,"halvings":0,"cell_chars":16384,"cell_head_chars":4096},"cells_cut":0,"cells_raw":0,"read":"whole","date_system":"1900"}

{"sheet":"MAPA DE PROCESOS","index":0,"n_rows":22,"n_cols":38,"rows_kept":22,"cut":false,"hidden":false,"merged":[[21,3,21,7],[15,23,15,24],[15,32,15,33],[1,1,1,10],[6,7,6,9],[8,7,8,9],[12,2,13,9],[14,2,15,9],[8,5,8,6],[5,5,5,6],[13,13,13,15],[15,13,15,15],[7,7,7,9],[9,3,9,9],[8,13,8,15],[10,13,10,15],[14,11,15,11],[8,3,8,4],[6,3,6,4],[1,12,1,13],[3,11,4,11],[4,2,4,3],[9,2,10,2],[7,4,7,5],[8,23,8,24],[9,11,10,11],[8,32,8,33],[10,32,10,33],[13,32,13,33],[13,23,13,24],[10,23,10,24],[12,11,13,11],[17,2,17,4],[17,6,17,9],[19,2,19,4],[19,6,19,9],[17,23,17,24],[19,11,20,11],[17,13,17,15],[16,11,18,11]]}
[]
[null,null,null,null,null,null,null,null,null,null,null,null,"CLICK"]
[]
[]
[]
[null,null,null,null,null,"PERSONAS"]
[]
[null,null,null,null,"RECURSOS",null,null,"SISTEMAS",null,null,null,null,null,null,null,null,"A","S","P","R",null,null,null,null,null,"A","S","P","R",null,null,null,null,null,"A","S","P","R"]
[null,null,null,null,null,"AMENAZAS",null,null,null,null,null,null,null,{"$f":"+AMENAZAS!C13","v":"1.  Movimientos sísmicos"},null,null,{"$f":"+AMENAZAS!H13","v":"Probable"},{"$f":"+SISTEMAS!J34","v":"Baja"},{"$f":"+PERSONAS!J54","v":"Baja"},{"$f":"+RECURSOS!J51","v":"Media"},null,null,null,{"$f":"+AMENAZAS!C14","v":"2. Erupciones Volcánicas"},null,{"$f":"+AMENAZAS!H14","v":"Probable"},{"$f":"+SISTEMAS!J34","v":"Baja"},{"$f":"+PERSONAS!J54","v":"Baja"},{"$f":"+RECURSOS!J51","v":"Media"},null,null,null,{"$f":"+AMENAZAS!C15","v":"3. Fugas y derrames de sustancias peligrosas"},null,{"$f":"+AMENAZAS!H15","v":"Posible"},{"$f":"+SISTEMAS!J34","v":"Baja"},{"$f":"+PERSONAS!J54","v":"Baja"},{"$f":"+RECURSOS!J51","v":"Media"}]
[null,null,null,"LECTURA DIAMANTE DE RIESGO",null,null,null,null,null,null,null,null,null,null,null,null,"A","S","P","R",null,null,null,null,null,"A","S","P","R",null,null,null,null,null,"A","S","P","R"]
[null,null,null,null,null,null,null,null,null,null,null,null,null,{"$f":"+AMENAZAS!C16","v":"4. Fenómenos Hidrometereologicos"},null,null,{"$f":"+AMENAZAS!H16","v":"Posible"},{"$f":"+SISTEMAS!J34","v":"Baja"},{"$f":"+PERSONAS!J54","v":"Baja"},{"$f":"+RECURSOS!J51","v":"Media"},null,null,null,{"$f":"+AMENAZAS!C18","v":"5. Incendios estructural"},null,{"$f":"+AMENAZAS!H18","v":"Probable"},{"$f":"+SISTEMAS!J34","v":"Baja"},{"$f":"+PERSONAS!J54","v":"Baja"},{"$f":"+RECURSOS!J51","v":"Media"},null,null,null,{"$f":"+AMENAZAS!C19","v":"6. Incendios vehicular"},null,{"$f":"+AMENAZAS!H19","v":"Probable"},{"$f":"+SISTEMAS!J34","v":"Baja"},{"$f":"+PERSONAS!J54","v":"Baja"},{"$f":"+RECURSOS!J51","v":"Media"}]
[]
[null,null,"El riesgo está definido, como la combinación de la probabilidad de que ocurra una o más exposiciones o eventos peligrosos y la severidad del daño que puede ser causada por éstos.",null,null,null,null,null,null,null,null,null,null,null,null,null,"A","S","P","R",null,null,null,null,null,"A","S","P","R",null,null,null,null,null,"A","S","P","R"]
[null,null,null,null,null,null,null,null,null,null,null,null,null,{"$f":"+AMENAZAS!C20","v":"7. Explosiones por fallas  eléctricas y/o sustancias peligrosas"},null,null,{"$f":"+AMENAZAS!H20","v":"Probable"},{"$f":"+SISTEMAS!J34","v":"Baja"},{"$f":"+PERSONAS!J54","v":"Baja"},{"$f":"+RECURSOS!J51","v":"Media"},null,null,null,{"$f":"+AMENAZAS!C21","v":"8. Gestión Inadecuada de residuos solidos"},null,{"$f":"+AMENAZAS!H21","v":"Posible"},{"$f":"+SISTEMAS!J34","v":"Baja"},{"$f":"+PERSONAS!J54","v":"Baja"},{"$f":"+RECURSOS!J51","v":"Media"},null,null,null,{"$f":"+AMENAZAS!C22","v":"9. Contaminación por rotura de lámparas fluorescentes"},null,{"$f":"+AMENAZAS!H22","v":"Posible"},{"$f":"+SISTEMAS!J34","v":"Baja"},{"$f":"+PERSONAS!J54","v":"Baja"},{"$f":"+RECURSOS!J51","v":"Media"}]
[null,null,"Una vez identificadas, descritas y analizadas las amenazas y para cada una, desarrollado el análisis de vulnerabilidad a personas, recursos y sistemas y procesos, se  procede a determinar el nivel de riesgo que es la combinación de las amenazas y las vulnerabilidades utilizando la teoría del diamante de riesgo que se describió anteriormente. ",null,null,null,null,null,null,null,null,null,null,null,null,null,"A","S","P","R",null,null,null,null,null,"A","S","P","R",null,null,null,null,null,"A","S","P","R"]
[null,null,null,null,null,null,null,null,null,null,null,null,null,{"$f":"+AMENAZAS!C23","v":"10. Contaminación Biológica"},null,null,{"$f":"+AMENAZAS!H23","v":"Posible"},{"$f":"+SISTEMAS!J34","v":"Baja"},{"$f":"+PERSONAS!J54","v":"Baja"},{"$f":"+RECURSOS!J51","v":"Media"},null,null,null,{"$f":"+AMENAZAS!C24","v":"11. Colapso Estructural"},null,{"$f":"+AMENAZAS!H24","v":"Probable"},{"$f":"+SISTEMAS!J34","v":"Baja"},{"$f":"+PERSONAS!J54","v":"Baja"},{"$f":"+RECURSOS!J51","v":"Media"},null,null,null,{"$f":"+AMENAZAS!C26","v":"12. Desordenes Civiles"},null,{"$f":"+AMENAZAS!H26","v":"Probable"},{"$f":"+SISTEMAS!J34","v":"Baja"},{"$f":"+PERSONAS!J54","v":"Baja"},{"$f":"+RECURSOS!J51","v":"Media"}]
[null,null,null,null,null,null,null,null,null,null,null,null,null,null,null,null,"A","S","P","R",null,null,null,null,null,"A","S","P","R",null,null,null,null,null,"A","S","P","R"]
[null,null,"INFORMACIÓN DE LA SEDE",null,null,null,"RECURSOS Y ESPACIOS",null,null,null,null,null,null,{"$f":"+AMENAZAS!C27","v":"13. Hurtos o asaltos"},null,null,{"$f":"+AMENAZAS!H27","v":"Probable"},{"$f":"+SISTEMAS!J34","v":"Baja"},{"$f":"+PERSONAS!J54","v":"Baja"},{"$f":"+RECURSOS!J51","v":"Media"},null,null,null,{"$f":"+AMENAZAS!C28","v":"14. Terrorismo"},null,{"$f":"+AMENAZAS!H28","v":"Probable"},{"$f":"+SISTEMAS!J34","v":"Baja"},{"$f":"+PERSONAS!J54","v":"Baja"},{"$f":"+RECURSOS!J51","v":"Media"},null,null,null,{"$f":"+AMENAZAS!C29","v":"15.Secuestro o toma de rehenes"},null,{"$f":"+AMENAZAS!H29","v":"Probable"},{"$f":"+SISTEMAS!J34","v":"Baja"},{"$f":"+PERSONAS!J54","v":"Baja"},{"$f":"+RECURSOS!J51","v":"Media"}]
[]
[null,null,"METODOLOGÍA",null,null,null,"PLAN DE EVACUACIÓN"]
[]
[null,null,null,"CONTROL DE CAMBIOS"]

{"sheet":"RECURSOS Y ESPACIOS","index":1,"n_rows":35,"n_cols":17,"rows_kept":35,"cut":false,"hidden":true,"merged":[[20,16,20,21],[15,12,15,15],[24,16,24,21],[18,16,18,21],[20,14,20,15],[25,14,25,15],[25,16,25,21],[28,14,28,15],[25,12,25,13],[15,16,15,21],[16,3,16,21],[24,4,24,11],[26,4,26,11],[27,4,27,11],[25,4,25,11],[28,4,28,11],[29,4,29,11],[29,12,29,13],[29,14,29,15],[29,16,29,21],[28,12,28,13],[28,16,28,21],[30,12,30,13],[31,12,31,13],[30,14,30,15],[31,14,31,15],[30,4,30,11],[31,4,31,11],[30,16,30,21],[31,16,31,21],[34,4,34,11],[34,12,34,13],[34,14,34,15],[34,16,34,21],[32,3,32,21],[33,4,33,11],[33,12,33,13],[33,14,33,15],[33,16,33,21],[2,21,4,21],[6,3,6,21],[7,3,7,10],[7,11,7,21],[8,4,8,7],[8,8,8,11],[8,12,8,15],[8,16,8,21],[17,16,17,21],[9,4,9,7],[9,8,9,11],[9,12,9,15],[9,16,9,21],[10,16,10,21],[11,16,11,21],[12,16,12,21],[14,16,14,21],[15,3,15,7],[15,8,15,11],[10,4,10,7],[10,8,10,11],[10,12,10,15],[11,4,11,7],[11,8,11,11],[11,12,11,15],[12,4,12,7],[12,8,12,11],[12,12,12,15],[17,4,17,11],[0,2,0,8],[2,2,4,3],[2,4,2,20],[3,4,4,20],[26,12,26,13],[26,14,26,15],[26,16,26,21],[27,12,27,13],[27,14,27,15],[27,16,27,21],[21,3,21,11],[21,12,21,13],[21,14,21,15],[21,16,21,21],[22,3,22,21],[13,4,13,7],[13,8,13,11],[13,12,13,15],[13,16,13,21],[23,4,23,11],[23,12,23,13],[23,14,23,15],[23,16,23,21],[24,12,24,13],[24,14,24,15],[19,4,19,11],[19,12,19,13],[19,14,19,15],[17,12,17,13],[17,14,17,15],[14,4,14,7],[14,8,14,11],[14,12,14,15],[18,4,18,11],[18,12,18,13],[18,14,18,15],[20,4,20,11],[20,12,20,13],[19,16,19,21]]}
[]
[]
[null,null,null,null,"PROCESO: SISTEMA INTEGRADO DE GESTIÓN"]
[null,null,null,null,"ANALISIS DE VULNERABILIDAD - RECURSOS Y ESPACIOS"]
[]
[]
[null,null,null,"Contra incendio - Extintores Portátiles"]
[null,null,null,"Área encargada de recarga y mantenimiento",null,null,null,null,null,null,null,"GRUPOP DE SEGURIDAD Y SALUD EN EL TRABAJO"]
[null,null,null,"Piso","Tipo de extintor",null,null,null,"Capacidad",null,null,null,"Ubicaciòn",null,null,null,"Observaciones "]
[null,null,null,1,"Multipropósito ABC",null,null,null,"10 libras ",null,null,null,"Rampa Primer Piso",null,null,null,"Extintor Vencido"]
[null,null,null,2,"Multipropósito ABC",null,null,null,"10 libras ",null,null,null,"Al Lado Rampa",null,null,null,"Extintor Vencido"]
[null,null,null,1,"Solkaflam 123",null,null,null,3700,null,null,null,"Escaleras Primer Piso Lado Oficina Direccion de Cultura",null,null,null,"Extintor Vencido"]
[null,null,null,2,"Multipropósito ABC",null,null,null,"20 libras ",null,null,null,"Dentro del Salon de  la Biblioteca ",null,null,null,"Extintor Vencido"]
[null,null,null,2,"Multipropósito ABC",null,null,null,"20 libras ",null,null,null," Biblioteca ",null,null,null,"Extintor Vencido"]
[null,null,null,3,"Agua a Presión ",null,null,null,"2.5 galones",null,null,null,"Pasillo Oficina Entrada Ludoteca",null,null,null,"Extintor"]
[null,null,null,"Total"]
[null,null,null,"Botiquín de primeros auxilios"]
[null,null,null,"Piso","Recursos",null,null,null,null,null,null,null,"Cantidad",null,"Ubicación",null,"Observaciones "]
[null,null,null,1,"Botiquín ",null,null,null,null,null,null,null,1,null,"Rampa",null,"Botiquin "]
[null,null,null,1,"Botiquín ",null,null,null,null,null,null,null,1,null,"Dirección de Fomento",null,"Botiquin "]
[null,null,null,2,"Botiquín ",null,null,null,null,null,null,null,1,null,"Dentro del Salon de  la Biblioteca ",null,"Botiquin "]
[null,null,null,"Total",null,null,null,null,null,null,null,null,{"$f":"SUM(M19:N21)","v":3}]
[null,null,null,"Otros elementos"]
[null,null,null,"Piso","Elemento (camillas, sillas de ruedas entre otros)",null,null,null,null,null,null,null,"Cantidad",null,"Ubicación",null,"Registro Fotografico"]
[null,null,null,1,"Camilla",null,null,null,null,null,null,null,1,null,"Rampa",null,"CLICK"]
[null,null,null,1,"Puntos Ecológicos",null,null,null,null,null,null,null,1,null,"Plazoletas",null,"CLICK"]
[null,null,null,"Sotano","Puntos Ecológicos",null,null,null,null,null,null,null,1,null,"Entrada Auditorio",null,"CLICK"]
[null,null,null,3,"Puntos Ecológicos",null,null,null,null,null,null,null,1,null,"Entrada Baños",null,"CLICK"]
[null,null,null,2,"Tanque de Reserva de Agua",null,null,null,null,null,null,null,1,null,"Baño de Hombres"]
[null,null,null,"todos","Plataforma  mecanica para personas con movilidad reducida",null,null,null,null,null,null,null,3,null,"todos los pisos",null,"CLICK"]
[null,null,null,1,"Rampa para Personas movilidad reducida",null,null,null,null,null,null,null,2,null,"entrada y pasillo fondo primer piso"]
[null,null,null,1,"Tablero Electrico Primer Piso",null,null,null,null,null,null,null,1,null,"Primer Piso",null,"CLICK"]
[null,null,null,"Desfribilador externo automatico"]
[null,null,null,"Piso","Recurso",null,null,null,null,null,null,null,"Cantidad",null,"Ubicación",null,"Registro Fotografico"]
[null,null,null,1,"Desfribilador Externo Automatico",null,null,null,null,null,null,null,1,null,"Entrada Secretaria de Cultura"]

{"sheet":"CONTROL DE CAMBIOS","index":2,"n_rows":11,"n_cols":6,"rows_kept":11,"cut":false,"hidden":false,"merged":[[10,2,10,3],[8,5,8,7],[9,2,9,3],[9,5,9,7],[8,2,8,3],[10,5,10,7],[6,2,6,7],[0,2,0,8],[2,2,4,3],[2,4,2,6],[2,7,4,7],[3,4,4,6]]}
[]
[]
[null,null,null,null,"PROCESO: SISTEMA INTEGRADO DE GESTIÓN"]
[null,null,null,null,"ANALISIS DE VULNERABILIDAD"]
[]
[]
[null,null,"CONTROL DE CAMBIOS"]
[]
[null,null,"FECHA",null,"VERSIÓN","DESCRIPCIÓN DEL CAMBIO"]
[null,null,"2024-06-26",null,1,"Actualización mediante la utilización de una macro, la cual hace mas sencilla la organización de cada analisis de vulnerabilidad."]
[null,null,"2024-03-19",null,2,"Se realiza actualización de planos de evacuación, se adjunta registro fotografico de cada elemento que hace parte del plan de emergencias, se incluye plano de evacuación."]

{"sheet":"AMENAZAS","index":3,"n_rows":29,"n_cols":8,"rows_kept":29,"cut":false,"hidden":true,"merged":[[0,2,0,8],[6,2,6,7],[7,3,7,5],[7,6,7,7],[8,3,8,5],[8,6,8,7],[2,7,4,7],[15,2,15,3],[16,2,16,7],[17,2,17,3],[9,3,9,5],[9,6,9,7],[10,2,10,3],[11,2,11,7],[12,2,12,3],[27,2,27,3],[28,2,28,3],[2,2,4,3],[2,4,2,6],[3,4,4,6],[23,2,23,3],[24,2,24,7],[25,2,25,3],[26,2,26,3],[18,2,18,3],[19,2,19,3],[20,2,20,3],[21,2,21,3],[22,2,22,3],[13,2,13,3],[14,2,14,3]]}
[]
[]
[null,null,null,null,"PROCESO: SISTEMA INTEGRADO DE GESTIÓN"]
[null,null,null,null,"ANALISIS DE VULNERABILIDAD - AMENAZAS"]
[]
[]
[null,null,"IDENTIFICACIÓN DE AMENAZAS"]
[null,null,"Posible",null,null,null," Nunca ha sucedido: Es aquel fenómeno que puede suceder o que es factible porque no existen razones históricas y científicas para decir que esto no sucederá. – Nunca ha sucedido"]
[null,null,"Probable",null,null,null,"Ya ha ocurrido: Es aquel fenómeno esperado del cual existen razones y argumentos técnicos científicos para creer que sucederá. Ya ha ocurrido"]
[null,null,"Inminente",null,null,null,"Evidente, detectable: Es aquel fenómeno esperado que tiene alta probabilidad de ocurrir. Evidente, detectable"]
[null,null,"AMENAZAS",null,"NATURAL","ANTROPICA","SOCIAL","CALIFICACIÓN"]
[null,null,"NATURALES"]
[null,null,"1.  Movimientos sísmicos",null,"x",null,null,"Probable"]
[null,null,"2. Erupciones Volcánicas",null,"x",null,null,"Probable"]
[null,null,"3. Fugas y derrames de sustancias peligrosas",null,null,"X",null,"Posible"]
[null,null,"4. Fenómenos Hidrometereologicos",null,"x",null,null,"Posible"]
[null,null,"ANTROPICAS"]
[null,null,"5. Incendios estructural",null,null,"x",null,"Probable"]
[null,null,"6. Incendios vehicular",null,null,"x",null,"Probable"]
[null,null,"7. Explosiones por fallas  eléctricas y/o sustancias peligrosas",null,null,"x",null,"Probable"]
[null,null,"8. Gestión Inadecuada de residuos solidos",null,null,"x",null,"Posible"]
[null,null,"9. Contaminación por rotura de lámparas fluorescentes",null,null,"x",null,"Posible"]
[null,null,"10. Contaminación Biológica",null,null,"x",null,"Posible"]
[null,null,"11. Colapso Estructural",null,null,"x",null,"Probable"]
[null,null,"SOCIALES"]
[null,null,"12. Desordenes Civiles",null,null,null,"x","Probable"]
[null,null,"13. Hurtos o asaltos",null,null,null,"x","Probable"]
[null,null,"14. Terrorismo",null,null,null,"x","Probable"]
[null,null,"15.Secuestro o toma de rehenes",null,null,null,"x","Probable"]

{"sheet":"INFORMACIÓN DE LA SEDE","index":4,"n_rows":50,"n_cols":16,"rows_kept":50,"cut":false,"hidden":true,"merged":[[44,12,44,17],[46,3,46,17],[2,4,2,16],[3,4,4,16],[6,3,6,17],[7,3,7,17],[8,3,8,17],[9,9,9,13],[9,14,9,17],[10,3,10,8],[10,9,10,13],[10,14,10,17],[30,11,33,17],[45,10,45,11],[44,3,44,4],[44,5,44,9],[44,10,44,11],[47,3,47,17],[48,3,48,17],[49,3,49,17],[9,3,9,8],[11,3,11,8],[11,9,11,13],[11,14,11,17],[15,3,15,17],[16,3,17,17],[18,3,18,17],[19,3,19,5],[19,6,19,10],[19,11,19,14],[19,15,19,17],[24,3,24,17],[25,3,25,10],[43,5,43,9],[43,10,43,11],[43,12,43,17],[34,3,37,4],[34,5,37,10],[34,11,37,17],[38,3,41,4],[38,5,41,10],[38,11,41,17],[45,3,45,9],[23,15,23,17],[20,3,20,5],[20,6,20,10],[20,11,20,14],[20,15,20,17],[21,11,21,14],[21,15,21,17],[22,3,22,5],[22,6,22,10],[22,11,22,14],[22,15,22,17],[21,3,21,5],[21,6,21,10],[42,3,42,17],[43,3,43,4],[12,9,12,13],[13,3,13,8],[13,9,13,13],[23,3,23,5],[23,6,23,10],[23,11,23,14],[50,3,82,17],[45,12,45,17],[2,17,4,17],[2,3,4,3],[14,3,14,8],[14,9,14,13],[14,14,14,17],[12,14,12,17],[13,14,13,17],[25,11,25,17],[26,3,29,4],[26,5,29,10],[26,11,29,17],[30,3,33,4],[30,5,33,10],[12,3,12,8]]}
[]
[]
[null,null,null,null,"PROCESO: SISTEMA INTEGRADO DE GESTIÓN"]
[null,null,null,null,"INFORMACIÓN DE LA SEDE"]
[]
[]
[null,null,null,"Información Básica"]
[null,null,null,"Nombre de la Sede "]
[null,null,null,"SECRETARIA DE CULTURA BIBLIOTECA SOLEDAD RENFIJO - ALCALDIA DE IBAGUE"]
[null,null,null,"Administrador SST",null,null,null,null,null,"correo electronico SST",null,null,null,null,"Empresa de seguridad fisica"]
[null,null,null,"Mauricio Gomez",null,null,null,null,null,"sst@ibague.gov.co",null,null,null,null,"Trebol"]
[null,null,null,"Dirección",null,null,null,null,null,"Ciudad / departamento/ municipio",null,null,null,null,"Barrio"]
[null,null,null,"Calle 10 No 4-55",null,null,null,null,null,"Ibague/Tolima",null,null,null,null,"Centro"]
[null,null,null,"Localidad/ Comuna",null,null,null,null,null,"NIT"]
[null,null,null,"Comuna uno",null,null,null,null,null,"800.113.389 - 7"]
[null,null,null,"Descripción general de la actividad económica"]
[null,null,null,"Administración Pública "]
[]
[null,null,null,"Comité Operativo de emergencias"]
[null,null,null,"Alcalde",null,null,"Alcalde o quien haga sus veces",null,null,null,null,"alcaldia@ibague.gov.co",null,null,null,"2617060 Ext 119"]
[null,null,null,"Secretaria General ",null,null,"Jefe designado o quien haga sus veces ",null,null,null,null,"secretariageneral@ibague.gov.co",null,null,null,"2617060 Ext 108-109-110"]
[null,null,null,"Secretaria Administrativa",null,null,"Jefe designado o quien haga sus veces ",null,null,null,null,"administrativa@ibague.gov.co",null,null,null,2623256]
[null,null,null,"Secretaria Tic",null,null,"Jefe designado o quien haga sus veces ",null,null,null,null,"tic@ibague.gov.co\n ",null,null,null,"2618553  PBX ext 208"]
[null,null,null,"Secretaria de Gobierno",null,null,"Jefe designado o quien haga sus veces ",null,null,null,null,"gobierno@ibague.gov.co",null,null,null,"2618553  PBX ext 208"]
[null,null,null,"Linderos sectoriales "]
[null,null,null,"Linderos sectoriales inmediatos a  la oficina",null,null,null,null,null,null,null,"Descripción"]
[null,null,null,"Norte",null,"Parque Centenario de Ibagué",null,null,null,null,null,"Sitio Turístico"]
[]
[]
[]
[null,null,null,"Sur",null,"Calle 10 A",null,null,null,null,null,"Vía Pública, Sede Universidad del Tolima"]
[]
[]
[]
[null,null,null,"Oriente",null,"Parque Centenario de Ibagué",null,null,null,null,null,"Sitio Turístico"]
[]
[]
[]
[null,null,null,"Occidente",null,"Sede Comercial",null,null,null,null,null,"Establecimiento Financiero"]
[]
[]
[]
[null,null,null,"Numero de personal a evacuar y horarios de operación"]
[null,null,null,"Piso",null,"Dependencias",null,null,null,null,"Estimado de Servidores y Visiatantes",null,"Observaciones"]
[null,null,null,"1 Y2",null,"Atención al Ciudadano, Oficina de Presupuesto, Archivo Instituto de Cultura, Auditorio, Radio Difusora Satelital, Biblioteca, Dirección General, Archivo Histórico y Ludoteca  ",null,null,null,null,79,null,"N/A"]
[null,null,null,"Total",null,null,null,null,null,null,79]
[null,null,null,"Características de las instalaciones"]
[null,null,null,"Cantidad de Pisos: 2 y 1 Mezanine  Características de los Pisos: Pisos lisos en mineral. Características de las Paredes exteriores: En bloque pañetadas con pintura Características de las Paredes interiores: En ladrillo pañetadas con pintura. Características de las Ventanas interiores y exteriores: Perfileria de aluminio y vidrio de seguridad"]
[null,null,null,"Georeferenciación y entorno"]
[null,null,null,"4.446021501374785, -75.24160859388299"]

{"sheet":"METODOLOGÍA","index":5,"n_rows":72,"n_cols":9,"rows_kept":72,"cut":false,"hidden":true,"merged":[[6,3,6,8],[7,3,8,8],[2,8,4,8],[2,3,4,3],[2,4,2,7],[3,4,4,7],[22,6,22,7],[23,3,23,5],[23,6,23,7],[21,3,21,8],[9,3,9,8],[10,3,10,8],[11,3,11,8],[12,3,12,8],[19,3,19,5],[19,6,19,7],[15,3,15,8],[18,3,18,8],[16,3,16,8],[17,3,17,8],[13,3,13,8],[14,3,14,8],[20,3,20,8],[37,3,37,8],[24,6,24,7],[25,3,25,5],[25,6,25,7],[26,3,26,8],[27,3,28,8],[29,3,29,8],[30,3,30,8],[24,3,24,5],[31,3,31,8],[32,3,32,8],[33,3,34,8],[35,3,35,8],[36,3,36,8],[22,3,22,5],[44,3,44,4],[45,3,45,4],[46,3,46,4],[41,3,41,5],[41,6,41,8],[43,3,43,4],[44,5,44,6],[44,7,44,8],[43,5,43,6],[43,7,43,8],[42,3,42,8],[45,5,45,6],[45,7,45,8],[38,3,38,5],[38,6,38,8],[39,3,39,5],[39,6,39,8],[40,3,40,5],[40,6,40,8],[54,5,54,6],[54,7,54,8],[56,3,57,8],[58,3,58,8],[46,5,46,6],[46,7,46,8],[51,3,51,4],[47,3,47,8],[48,3,48,8],[49,3,49,8],[50,3,50,8],[51,5,51,6],[51,7,51,8],[52,5,52,6],[52,7,52,8],[52,3,52,4],[53,3,53,4],[53,5,53,6],[53,7,53,8],[71,3,72,8],[64,3,64,8],[65,3,65,8],[70,3,70,8],[67,3,67,8],[68,3,69,8],[66,3,66,8],[55,3,55,8],[59,3,60,8],[61,3,61,8],[62,3,62,8],[63,3,63,8],[54,3,54,4]]}
[]
[]
[null,null,null,null,"SISTEMA DE GESTIÓN EN SEGURIDAD Y SALUD EN EL TRABAJO"]
[null,null,null,null,"METODOLOGIA ANALISIS DE VULNERABILIDAD \"DIAMANTE DE RIESGO\""]
[]
[]
[null,null,null,"Descripción de metodología diamante para análisis de riesgo"]
[null,null,null,"Objetivo:\nIdentificar y analizar los diferentes factores de riesgo que involucran peligros potenciales que podrían afectar las condiciones socio-ambientales de la sede "]
[]
[null,null,null,"Identificación de amenazas"]
[null,null,null,"Para este análisis es importante tener en cuenta el significado de Amenaza: Peligro latente de que un evento físico de origen natural, o causado, o inducido por la acción humana de manera accidental, se presente con una severidad suficiente para causar pérdida de vidas, lesiones u otros impactos en la salud, así como también daños y pérdidas en los bienes, la infraestructura, los medios de sustento, la prestación de servicios y los recursos ambientales."]
[null,null,null,"Identificación, descripción y análisis de amenazas"]
[null,null,null,"El análisis de amenaza de la empresa se realiza consignando en la tabla análisis de amenazas la siguiente información:"]
[null,null,null,"Identificación de la amenazas."]
[null,null,null,"La descripción de las posibles amenazas de origen natural, antropico, tecnológico y social"]
[null,null,null,"Se indica si la amenaza es de origen interno o externo."]
[null,null,null,"Se describe la amenaza mencionando la fuente que lo generaría, registros históricos o estudios que sustentaría la posibilidad de generación del evento."]
[null,null,null,"Se realiza la calificación de la amenaza,"]
[null,null,null,"Se selecciona el color que corresponde a la calificación de acuerdo con la información de la siguiente tabla:"]
[null,null,null,"Natural",null,null,"Antropicas no intencionales",null,"Social"]
[]
[null,null,null,"Calificación de la amenaza"]
[null,null,null,"Evento",null,null,"Descripción",null,"Valoración"]
[null,null,null,"Posible : Nunca ha sucedido",null,null,"Es aquel fenómeno que puede suceder o que es factible porque no existen razones históricas y científicas para decir que esto no sucederá. – Nunca ha sucedido"]
[null,null,null,"Probable : Ya ha ocurrido",null,null,"Es aquel fenómeno esperado del cual existen razones y argumentos técnicos científicos para creer que sucederá. Ya ha ocurrido"]
[null,null,null,"Inminente : Evidente, detectable",null,null,"Es aquel fenómeno esperado que tiene alta probabilidad de ocurrir. Evidente, detectable"]
[null,null,null,"Estimación de la vulnerabilidad en función de la severidad de las consecuencias"]
[null,null,null,"Para este análisis es importante identificar el significado de Vulnerabilidad: Característica propia de un elemento o grupo de elemento expuestos a una amenaza, relacionada con su incapacidad física, económica, política o social de anticipar, resistir y recuperarse del daño sufrido cuando opera dicha amenaza. Es un factor de riesgo interno. "]
[]
[null,null,null,"El análisis de vulnerabilidad se va a realizar a tres elementos expuestos, cada uno de ellos analizado desde tres aspectos:"]
[null,null,null,"· Personas: Gestion organizacional, capacitación y entrenamiento, Caracteristicas de seguridad,"]
[null,null,null,"· Recursos: Suministros, edificación, equipos (instrumentación),"]
[null,null,null,"· Sistemas y procesos: Servicios públicos, sistemas alternos, recuperación."]
[null,null,null,"Para cada uno de los aspectos se desarrollan listados que a través de preguntas buscan de manera cuantitativa dar un panorama general que le permite al evaluador calificar como mala, regular o buena, la vulnerabilidad de las personas, recursos y sistemas y procesos de las instalaciones de la entidad ante las amenazas descritas.  "]
[]
[null,null,null,"Análisis de vulnerabilidad"]
[null,null,null,"En las tablas Vulnerabilidad de las personas, Vulnerabilidad de los Recursos y Vulnerabilidad de sistemas y procesos, se presentan los aspectos a evaluar respectivamente. Para cada uno de ellos se realizan una serie de preguntas formuladas que van a orientar la calificación final. Cada pregunta debe ser calificada teniendo la siguiente información: "]
[null,null,null,"Valoración para el análisis de vulnerabilidad"]
[null,null,null,"Factor",null,null,"Valoración"]
[null,null,null,"SI : 1",null,null,"Existe o tiene un nivel bueno"]
[null,null,null,"NO : 0",null,null,"No existe o tiene un nivel deficiente"]
[null,null,null,"PARCIAL : 0,5",null,null,"La implementación no está determinada o tiene un nivel regular"]
[null,null,null," Interpretación de la vulnerabilidad por cada aspecto"]
[null,null,null,"Rango",null,"Calificación",null,"Color"]
[null,null,null,"0,68 - 1 ",null,"Bueno",null,"Verde "]
[null,null,null,"0,34 - 0,67",null,"Regular",null,"Amarillo "]
[null,null,null,"0.0 – 0,33",null,"Malo",null,"Rojo"]
[null,null,null,"Calificación de las variables de vulnerabilidad"]
[null,null,null,"La evaluación se establece teniendo en cuenta el porcentaje de respuestas con SI, NO y PARCIAL, la cual establece su valoración en evaluación de la vulnerabilidad. Con esta información, en la tabla referencia de respuesta se concluye el resultado por cada uno de los aspectos vulnerables evaluados."]
[null,null,null,"Una vez calificadas todas las variables, se realiza la sumatoria de los tres aspectos que contempla cada elemento considerado, en donde finalmente se obtendrá la calificación final del nivel de vulnerabilidad de los tres aspectos evaluados. "]
[null,null,null,"Interpretación de la vulnerabilidad por cada Elemento  (Sistemas, Recursos, Personas)"]
[null,null,null,"Rango",null,"Calificación",null,"Color"]
[null,null,null,"0,0 - 1,00",null,"Alta",null,"Rojo"]
[null,null,null,"1,01 - 2,00",null,"Media",null,"Amarillo "]
[null,null,null,"2,01 -3,00",null,"Baja",null,"Verde "]
[null,null,null,"Nivel de Riesgo"]
[null,null,null,"El riesgo está definido, como la combinación de la probabilidad de que ocurra una o más exposiciones o eventos peligrosos y la severidad del daño que puede ser causada por éstos."]
[]
[null,null,null,"Una vez identificadas, descritas y analizadas las amenazas y para cada una, desarrollado el analisis de vulnerabilidad a personas, recursos y sistemas y procesos, se  procede a determinar el nivel de riesgo que es la combinación de las amenazas y las vulnerabilidades utilizando la teoría del diamante de riesgo que se describe a continuación: "]
[null,null,null,"Figura Lectura diamante"]
[]
[null,null,null,"Para determinar el nivel de riesgo, se contempla en la tabla valoración del riesgo, la identificación de las amenazas descritas, el nivel de cada factor según lo evaluado y finalmente la interpretación del resultado de la unión de los colores de los rombos, basado en la siguiente información:   "]
[null,null,null," Interpretación del riesgo"]
[]
[null,null,null,"Riesgo bajo, significa que este escenario no representa una amenaza significativa y consecuentemente no requiere plan especial."]
[null,null,null,"Riesgo medio o tolerable, significa que se deberían implementar medidas para la gestión de riesgo. Para el nivel de planificación, un plan de carácter general es suficiente para tomar las medidas preventivas correspondientes."]
[null,null,null,"Riesgo alto, representa una amenaza significativa que requiere la adopción de acción prioritarias e inmediatas en la gestión del riesgo. Es importante que este plan considere los aspectos de prevención, mitigación y contingencias que contempla cada uno de estos escenarios."]
[null,null,null,"Valoración del riesgo"]
[null,null,null,"Los resultados del análisis de riesgos permiten determinar los escenarios en los que se debe priorizar la intervención y establecer las medidas de intervención, las cuales pueden ser preventivas (afecta la amenaza) o de mitigación (afecta la vulnerabilidad)."]
[]
[null,null,null,"Medidas de intervención"]
[null,null,null,"A partir de la priorización de escenarios se definen las medidas de intervención, las cuales son socializadas y coordinadas por el encargado del plan de emergencias, pueden ser de tipo preventivo (afectan la amenaza) o de protección / mitigación (afecta la vulnerabilidad)."]

{"sheet":"SISTEMAS","index":6,"n_rows":34,"n_cols":10,"rows_kept":34,"cut":false,"hidden":true,"merged":[[14,3,14,7],[14,9,14,10],[6,3,6,10],[7,3,8,4],[7,5,7,7],[7,8,8,8],[7,9,8,10],[9,3,9,10],[10,3,10,4],[10,9,10,10],[11,3,11,4],[11,9,11,10],[16,3,17,4],[16,5,16,7],[16,8,17,8],[21,9,21,10],[15,3,15,10],[33,3,33,7],[33,9,33,10],[25,9,26,10],[27,3,27,10],[28,3,28,4],[28,9,28,10],[29,3,29,4],[29,9,29,10],[25,3,26,4],[25,5,25,7],[25,8,26,8],[30,3,30,4],[31,3,31,4],[31,9,31,10],[32,3,32,7],[32,9,32,10],[22,3,22,4],[22,9,22,10],[23,3,23,7],[23,9,23,10],[24,3,24,10],[2,10,4,10],[2,3,4,3],[2,4,2,9],[3,4,4,9],[30,9,30,10],[12,3,12,4],[12,9,12,10],[13,3,13,4],[13,9,13,10],[16,9,17,10],[18,3,18,10],[19,3,19,4],[19,9,19,10],[20,3,20,4],[20,9,20,10],[21,3,21,4]]}
[]
[]
[null,null,null,null,"PROCESO: SISTEMA INTEGRADO DE GESTIÓN"]
[null,null,null,null,"METODOLOGIA ANALISIS DE VULNERABILIDAD - SISTEMAS"]
[]
[]
[null,null,null,"1. ELEMENTO - Sistemas y Procesos"]
[null,null,null,"Punto a evaluar",null,"Respuesta",null,null,"Calificación","Observaciones"]
[null,null,null,null,null,"Si","No","Parcial"]
[null,null,null,"1. Servicios- Aspecto"]
[null,null,null,"Se cuenta con buen suministro de energía?",null,"x",null,null,{"$f":"+IF(F11=\"X\",1,IF(G11=\"x\",0,IF(H11=\"x\",0.5,\" \")))","v":1}]
[null,null,null,"Se cuenta con buen suministro de agua?",null,"X",null,null,{"$f":"+IF(F12=\"X\",1,IF(G12=\"x\",0,IF(H12=\"x\",0.5,\" \")))","v":1}]
[null,null,null,"Se cuenta con programa de recolección de residuos?",null,"X",null,null,{"$f":"+IF(F13=\"X\",1,IF(G13=\"x\",0,IF(H13=\"x\",0.5,\" \")))","v":1}]
[null,null,null,"Se cuenta con  servicio de comunicaciones interna?",null,"X",null,null,{"$f":"+IF(F14=\"X\",1,IF(G14=\"x\",0,IF(H14=\"x\",0.5,\" \")))","v":1}]
[null,null,null,"Promedio servicios",null,null,null,null,{"$f":"AVERAGE(I11:I14)","v":1},{"$f":"+IF(I15>=0.679,\"Bueno\",IF(AND(I15>=0.339,I15<=0.669),\"Regular\",IF(I15<=0.33,\"Malo\",\"error\")))","v":"Bueno"}]
[]
[null,null,null,"Punto a evaluar",null,"Respuesta",null,null,"Calificación","Observaciones"]
[null,null,null,null,null,"Si","No","Parcial"]
[null,null,null,"2. Sistemas alternos - Aspecto"]
[null,null,null,"¿Se cuenta con un tanque de reserva de agua?",null,"X",null,null,{"$f":"+IF(F20=\"X\",1,IF(G20=\"x\",0,IF(H20=\"x\",0.5,\" \")))","v":1}]
[null,null,null,"¿Se cuenta con una planta de energía back up?",null,"x",null,null,{"$f":"+IF(F21=\"X\",1,IF(G21=\"x\",0,IF(H21=\"x\",0.5,\" \")))","v":1}]
[null,null,null,"¿Se cuenta con un sistema de vigilancia física?",null,"X",null,null,{"$f":"+IF(F22=\"X\",1,IF(G22=\"x\",0,IF(H22=\"x\",0.5,\" \")))","v":1}]
[null,null,null,"¿Se cuenta con hidrantes internos y/o externos?",null,"X",null,null,{"$f":"+IF(F23=\"X\",1,IF(G23=\"x\",0,IF(H23=\"x\",0.5,\" \")))","v":1}]
[null,null,null,"Promedio sistemas alternos",null,null,null,null,{"$f":"AVERAGE(I20:I23)","v":1},{"$f":"+IF(I24>=0.679,\"Bueno\",IF(AND(I24>=0.339,I24<=0.669),\"Regular\",IF(I24<=0.33,\"Malo\",\"error\")))","v":"Bueno"}]
[]
[null,null,null,"Punto a evaluar",null,"Respuesta",null,null,"Calificación","Observaciones"]
[null,null,null,null,null,"Si","No","Parcial"]
[null,null,null,"3. Recuperación - Aspecto"]
[null,null,null,"Se cuenta con un plan de continuidad de negocio?",null,null,"x",null,{"$f":"+IF(F29=\"X\",1,IF(G29=\"x\",0,IF(H29=\"x\",0.5,\" \")))","v":0}]
[null,null,null,"Se cuenta con algún sistema de seguro para los funcionarios?",null,null,"x",null,{"$f":"+IF(F30=\"X\",1,IF(G30=\"x\",0,IF(H30=\"x\",0.5,\" \")))","v":0}]
[null,null,null,"Se encuentra asegurada las edificaciones y los bienes en general para cada amenaza identificada?",null,"X",null,null,{"$f":"+IF(F31=\"X\",1,IF(G31=\"x\",0,IF(H31=\"x\",0.5,\" \")))","v":1}]
[null,null,null,"Se encuentra asegurada la informacion digital y analoga de la organización?",null,"X",null,null,{"$f":"+IF(F32=\"X\",1,IF(G32=\"x\",0,IF(H32=\"x\",0.5,\" \")))","v":1}]
[null,null,null,"Promedio recuperación",null,null,null,null,{"$f":"AVERAGE(I29:I32)","v":0.5},{"$f":"+IF(I33>0.679,\"Bueno\",IF(AND(I33>0.339,I33<0.669),\"Regular\",IF(I33<=0.33,\"Malo\",\"error\")))","v":"Regular"}]
[null,null,null,"Suma total promedios - calificación de riesgo para el ELEMENTO sistemas y proceso",null,null,null,null,{"$f":"+SUM(I15+I24+I33)","v":2.5},{"$f":"+IF(I34<=1,\"Alta\",IF(AND(I34>=1.01,I34<2),\"Media\",IF(I34>=2.01,\"Baja\",\"error\")))","v":"Baja"}]

{"sheet":"PERSONAS","index":7,"n_rows":54,"n_cols":10,"rows_kept":54,"cut":false,"hidden":true,"merged":[[7,3,7,10],[8,3,8,10],[2,10,4,10],[2,3,4,3],[2,4,2,9],[3,4,4,9],[16,3,16,4],[16,9,16,10],[32,9,32,10],[33,9,33,10],[29,3,30,4],[29,5,29,7],[29,8,30,8],[22,3,22,4],[22,9,22,10],[23,9,23,10],[25,3,25,4],[19,3,19,4],[19,9,19,10],[20,3,20,4],[20,9,20,10],[21,3,21,4],[9,9,10,10],[11,3,11,10],[14,3,14,4],[15,3,15,4],[15,9,15,10],[13,3,13,4],[13,9,13,10],[14,9,14,10],[12,3,12,4],[12,9,12,10],[9,3,10,4],[9,5,9,7],[9,8,10,8],[28,3,28,10],[17,9,17,10],[18,3,18,4],[18,9,18,10],[23,3,23,4],[24,3,24,4],[24,9,24,10],[21,9,21,10],[17,3,17,4],[25,9,25,10],[26,3,26,4],[26,9,26,10],[27,3,27,7],[27,9,27,10],[29,9,30,10],[31,3,31,10],[32,3,32,4],[33,3,33,4],[34,3,34,4],[34,9,34,10],[35,3,35,4],[35,9,35,10],[36,3,36,4],[36,9,36,10],[37,3,37,4],[37,9,37,10],[45,3,45,4],[45,9,45,10],[38,3,38,7],[38,9,38,10],[39,3,39,10],[40,3,41,4],[40,5,40,7],[40,8,41,8],[40,9,41,10],[42,3,42,10],[43,3,43,4],[43,9,43,10],[44,3,44,4],[44,9,44,10],[46,3,46,4],[46,9,46,10],[47,3,47,4],[47,9,47,10],[48,3,48,4],[48,9,48,10],[52,3,52,10],[53,3,53,7],[53,9,53,10],[49,3,49,4],[49,9,49,10],[50,3,50,4],[50,9,50,10],[51,3,51,7],[51,9,51,10]]}
[]
[]
[null,null,null,null,"PROCESO: SISTEMA INTEGRADO DE GESTIÓN"]
[null,null,null,null,"METODOLOGIA ANALISIS DE VULNERABILIDAD - PERSONAS"]
[]
[]
[]
[null,null,null,"Estimación de la vulnerabilidad"]
[null,null,null,"Personas"]
[null,null,null,"Punto a evaluar",null,"Respuesta",null,null,"Calificación","Observaciones"]
[null,null,null,null,null,"Si","No","Parcial"]
[null,null,null,"1. Gestión organizacional"]
[null,null,null,"Se cuenta con una organización para la prevención y atención de emergencias  de sst y ambiental en la sede?",null,"x",null,null,{"$f":"+IF(F13=\"X\",1,IF(G13=\"x\",0,IF(H13=\"x\",0.5,\" \")))","v":1}]
[null,null,null,"¿Existe una política general en Gestión del Riesgo donde se indica la prevención y preparación para afrontar una emergencia de sst y ambientales?",null,"X",null,null,{"$f":"+IF(F14=\"X\",1,IF(G14=\"x\",0,IF(H14=\"x\",0.5,\" \")))","v":1}]
[null,null,null,"¿Existe un esquema organizacional para la respuesta a emergencias con funciones y responsabilidades asignados (Brigadas, Sistema Comando de Incidentes-SCI, entre otros) y se mantiene actualizado?",null,"X",null,null,{"$f":"+IF(F15=\"X\",1,IF(G15=\"x\",0,IF(H15=\"x\",0.5,\" \")))","v":1}]
[null,null,null,"¿La estructura organizacional para la respuesta a emergencias garantiza la respuesta a los eventos que se puedan presentar tanto en los horarios laborales como en los no laborales?",null,"x",null,null,1]
[null,null,null,"¿Han establecido mecanismos de interacción con su entorno que faciliten dar respuesta apropiada a los eventos que se puedan presentar? ",null,"x",null,null,{"$f":"+IF(F17=\"X\",1,IF(G17=\"x\",0,IF(H17=\"x\",0.5,\" \")))","v":1},"Se tiene una red de ayuda mutua Supermercados Mercacentro"]
[null,null,null,"¿Se ha realizado la inducción a todo el personal y tienen conocimiento de que hacer en caso de emergencias sst y ambiental?",null,"x",null,null,1]
[null,null,null,"¿Existe comité de emergencias y tiene funciones asignadas?",null,"x",null,null,{"$f":"+IF(F19=\"X\",1,IF(G19=\"x\",0,IF(H19=\"x\",0.5,\" \")))","v":1}]
[null,null,null,"¿Existe brigada de emergencias?  ",null,"x",null,null,{"$f":"+IF(F20=\"X\",1,IF(G20=\"x\",0,IF(H20=\"x\",0.5,\" \")))","v":1},"Se esta conformando la Brigada"]
[null,null,null,"¿Se ha informado de la existencia de Brigada en la empresa?",null,"x",null,null,1]
[null,null,null,"¿Promueve activamente el programa de preparación para emergencias en sus trabajadores?",null,null,"x",null,0]
[null,null,null,"¿Los Trabajadores han adquirido responsabilidades específicas de acuerdo  a su labor, en caso de emergencias en sst y ambiental?",null,"x",null,null,1]
[null,null,null,"¿Se cuenta con protocolos o procedimientos para el situaciones de incendio,movimientos sismicos, inundacion, atentados terroristas, eventos atmosfericos y entre otros.",null,"x",null,null,1]
[null,null,null,"¿Existen instrumentos o formatos para realizar inspecciones a las áreas para identificar condiciones inseguras que puedan generar emergencias?",null,"x",null,null,1]
[null,null,null,"¿Existe y se mantiene actualizado todos los componentes del plan de Emergencias y Contingencias en sst y ambiente?",null,"x",null,null,1]
[null,null,null,"¿Existen instrumentos, formatos, folletos como material de difusión en temas de prevención y control de emergencias en sst y ambiente?",null,null,"x",null,0]
[null,null,null,"Promedio gestión organizacional",null,null,null,null,{"$f":"AVERAGE(I13:I27)","v":0.8666666666666667},{"$f":"+IF(I28>=0.679,\"Bueno\",IF(AND(I28>=0.339,I28<=0.669),\"Regular\",IF(I28<=0.33,\"Malo\",\"error\")))","v":"Bueno"}]
[]
[null,null,null,"Punto a evaluar",null,"Respuesta",null,null,"Calificación","Observaciones"]
[null,null,null,null,null,"Si","No","Parcial"]
[null,null,null,"2. Capacitación y entrenamiento"]
[null,null,null,"¿Existe un programa de capacitación en prevención y control de emergencias de sst y ambiente?",null,"x",null,null,{"$f":"+IF(F33=\"X\",1,IF(G33=\"x\",0,IF(H33=\"x\",0.5,\" \")))","v":1}]
[null,null,null,"¿Las personas han recibido capacitación general en temas básicos de emergencias y en general saben las personas auto protegerse?",null,"x",null,null,1]
[null,null,null,"¿Todos los miembros de la organización se han capacitado de acuerdo al programa de capacitacion en prevención y respuesta a emergencias?",null,"x",null,null,1,"Lista de Asistencia"]
[null,null,null,"¿Se cuenta con un programa de entrenamiento en respuesta a emergencias para todos los miembros de la organización?",null,"x",null,null,1]
[null,null,null,"¿Se han realizado simulacros en sst y ambiente?",null,"x",null,null,1]
[null,null,null,"¿Esta divulgado el plan de emergencias,   y los distintos planes de acción?",null,null,"x",null,0]
[null,null,null,"Promedio capacitación y entrenamiento",null,null,null,null,{"$f":"AVERAGE(I33:I38)","v":0.83333333333333337},{"$f":"+IF(I39>=0.679,\"Bueno\",IF(AND(I39>=0.339,I39<=0.669),\"Regular\",IF(I39>=0.33,\"Malo\",\"error\")))","v":"Bueno"}]
[]
[null,null,null,"Punto a evaluar",null,"Respuesta",null,null,"Calificación","Observaciones"]
[null,null,null,null,null,"Si","No","Parcial"]
[null,null,null,"3. Características de seguridad"]
[null,null,null,"¿Se cuenta con elementos de proteccion suficientes y adecuados para el personal de la organización en sus actividades de rutina?",null,"X",null,null,{"$f":"+IF(F44=\"X\",1,IF(G44=\"x\",0,IF(H44=\"x\",0.5,\" \")))","v":1}]
[null,null,null,"El personal de la brigada y el comité de emergencia se encuentra debidamente identificado (chaleco, gorra, brazalete, carnet)?",null,"x",null,null,{"$f":"+IF(F45=\"X\",1,IF(G45=\"x\",0,IF(H45=\"x\",0.5,\" \")))","v":1}]
[null,null,null,"Se tienen implementos  el plan de acción para atender  primeros auxilios en caso de requerirse?",null,null,"x",null,0]
[null,null,null,"¿Cuentan con botones de pánico?",null,null,"x",null,0]
[null,null,null,"¿Cuentan con llistado de números  de emergencia?",null,"X",null,null,1]
[null,null,null,"¿Se cuenta con elementos de protección personal para la respuesta a emergencias, de acuerdo con las amenazas identificadas y las necesidades de su organización?",null,"X",null,null,1]
[null,null,null,"¿Se cuenta con un esquema de seguridad fisica?",null,"X",null,null,1]
[null,null,null,"¿Se cuenta con implementos básicos para el plan de acción contraincendios, tales como herramientas manuales, extintores, palas, entre otros, de acuerdo con las necesidades específicas y reales para las instalaciones de la empresa?",null,"X",null,null,1]
[null,null,null,"Promedio Seguridad",null,null,null,null,{"$f":"AVERAGE(I44:I51)","v":0.75},{"$f":"+IF(I52>=0.679,\"Bueno\",IF(AND(I52>=0.339,I52<=0.669),\"Regular\",IF(I52<=0.33,\"Malo\",\"error\")))","v":"Bueno"}]
[]
[null,null,null,"Suma total promedios - calificación de riesgo Elemento Personas",null,null,null,null,{"$f":"+SUM(I28+I39+I52)","v":2.4500000000000002},{"$f":"+IF(I54<=1,\"Alta\",IF(AND(I54>=1.01,I54<=2),\"Media\",IF(I54>=2.01,\"Baja\",\"error\")))","v":"Baja"}]

{"sheet":"RECURSOS","index":8,"n_rows":51,"n_cols":10,"rows_kept":51,"cut":false,"hidden":true,"merged":[[2,10,4,10],[2,3,4,3],[2,4,2,9],[7,3,7,10],[12,3,12,4],[12,9,12,10],[11,3,11,4],[11,9,11,10],[8,3,9,4],[8,5,8,7],[8,8,9,8],[8,9,9,10],[10,3,10,10],[3,4,4,9],[19,3,19,7],[20,3,20,10],[13,3,13,4],[13,9,13,10],[14,3,14,4],[14,9,14,10],[15,3,15,4],[15,9,15,10],[31,3,31,4],[31,9,31,10],[34,3,34,7],[27,9,27,10],[30,3,30,4],[30,9,30,10],[32,3,32,4],[32,9,32,10],[33,3,33,4],[33,9,33,10],[34,9,34,10],[29,3,29,4],[29,9,29,10],[51,3,51,10],[46,3,46,4],[46,9,46,10],[47,3,47,4],[47,9,47,10],[48,9,48,10],[48,3,48,7],[50,9,50,10],[49,3,49,10],[50,3,50,7],[43,3,43,4],[43,9,43,10],[44,3,44,4],[44,9,44,10],[45,3,45,4],[45,9,45,10],[42,3,42,4],[42,9,42,10],[41,3,41,4],[41,9,41,10],[35,3,35,10],[36,9,37,10],[38,3,38,10],[39,3,39,4],[39,9,39,10],[40,3,40,4],[40,9,40,10],[36,3,37,4],[36,5,36,7],[36,8,37,8],[24,9,24,10],[25,3,25,4],[25,9,25,10],[26,3,26,4],[26,9,26,10],[23,3,23,10],[27,3,27,4],[28,3,28,4],[28,9,28,10],[16,3,16,4],[16,9,16,10],[17,3,17,4],[17,9,17,10],[21,3,22,4],[21,5,21,7],[21,8,22,8],[21,9,22,10],[18,3,18,4],[18,9,18,10],[19,9,19,10],[24,3,24,4]]}
[]
[]
[null,null,null,null,"PROCESO: SISTEMA INTEGRADO DE GESTIÓN"]
[null,null,null,null,"METODOLOGIA ANALISIS DE VULNERABILIDAD - RECURSOS"]
[]
[]
[]
[null,null,null,"Recursos"]
[null,null,null,"Punto a evaluar",null,"Respuesta",null,null,"Calificación","Observaciones"]
[null,null,null,null,null,"Si","No","Parcial"]
[null,null,null,"1. Suministros"]
[null,null,null,"¿Se cuenta con implementos básicos para la respuesta de acuerdo con la amenaza identificada en sst y ambiente?",null,null,null,"x",{"$f":"+IF(F12=\"X\",1,IF(G12=\"x\",0,IF(H12=\"x\",0.5,\" \")))","v":0.5}]
[null,null,null,"¿Se encuentran debidamente aislados los elementos combustibles o inflamables?",null,null,null,"x",{"$f":"+IF(F13=\"X\",1,IF(G13=\"x\",0,IF(H13=\"x\",0.5,\" \")))","v":0.5}]
[null,null,null,"¿Se tiene identificado espacios para la ubicación de instalaciones de emergencias (puntos de encuentro, puestos de mando, módulos de estabilizacion de heridos, kit de aseo para derrames entre otros)?",null,"X",null,null,1]
[null,null,null,"¿Se cuenta con sistema de extintores portátiles seleccionados y distribuidos de manera técnica según norma NFPA 10 y normatividad ambiental?",null,null,"x",null,0,"Extintores Vencidos"]
[null,null,null,"¿Se cuenta con gabinetes contra incendio?",null,"x",null,null,1]
[null,null,null,"¿Se cuenta con detectores de humo?",null,null,"x",null,0]
[null,null,null,"Existe una correcta distribución de camillas en las instalaciones, teniendo en cuenta la población de la sede?",null,null,null,"x",0.5]
[null,null,null,"Se cuenta con implementos básicos para la atencion de heridos, tales como: camillas, botiquines, guantes entre otros, de acuerdo con las necesidades de su organización?",null,null,"x",null,0]
[null,null,null,"Promedio suministros",null,null,null,null,{"$f":"AVERAGE(I12:I19)","v":0.4375},{"$f":"+IF(I20>=0.679,\"Bueno\",IF(AND(I20>=0.339,I20<=0.669),\"Regular\",IF(I20<=0.33,\"Malo\",\"error\")))","v":"Regular"}]
[]
[null,null,null,"Punto a evaluar",null,"Respuesta",null,null,"Calificación","Observaciones"]
[null,null,null,null,null,"Si","No","Parcial"]
[null,null,null,"2. Edificaciones"]
[null,null,null,"¿El tipo de construcción es sismoresistente o cuenta con un refuerzo estructural?",null,null,null,"x",{"$f":"+IF(F25=\"X\",1,IF(G25=\"x\",0,IF(H25=\"x\",0.5,\" \")))","v":0.5}]
[null,null,null,"Los materiales estructurales de las instalaciones de la institución cumplen con las NSR-2010?, se ha realizado estudio de vulnerabilidad sísmica para determinar cumplimiento?",null,null,null,"x",{"$f":"+IF(F26=\"X\",1,IF(G26=\"x\",0,IF(H26=\"x\",0.5,\" \")))","v":0.5}]
[null,null,null,"¿Existen puertas y muros cortafuego, puertas antipanico, entre otras caracteristicas de seguridad?",null,null,"x",null,0]
[null,null,null,"¿Están definidas las rutas de evacuación y salidas de emergencia, debidamente señalizadas y con iluminacion alterna?",null,null,"x",null,0]
[null,null,null,"¿Las escaleras de emergencia se encuentran en buen estado, posen doble pasamanos, señalizacion, antideslizantes, entre otras caracteristicas de seguridad?",null,null,"x",null,0]
[null,null,null,"¿Las ventanas cuentan con película de seguridad?",null,null,"x",null,0]
[null,null,null,"¿Se tienen asegurados o anclados enseres, gabinetes u objetos que puedan caer?",null,"X",null,null,1]
[null,null,null,"¿Existe más de una salida?",null,"x",null,null,1]
[null,null,null,"¿Existen rutas de evacuación?",null,"x",null,null,1]
[null,null,null,"¿Se cuenta con parqueaderos?",null,"X",null,null,1]
[null,null,null,"Promedio edificaciones",null,null,null,null,{"$f":"AVERAGE(I25:I34)","v":0.5},{"$f":"+IF(I35>=0.679,\"Bueno\",IF(AND(I35>=0.339,I35<=0.669),\"Regular\",IF(I35<=0.33,\"Malo\",\"error\")))","v":"Regular"}]
[]
[null,null,null,"Punto a evaluar",null,"Respuesta",null,null,"Calificación","Observaciones"]
[null,null,null,null,null,"Si","No","Parcial"]
[null,null,null,"3. Equipos"]
[null,null,null,"¿Se cuenta con sistema de detección y/o monitoreo de la amenaza identificada?",null,null,"x",null,{"$f":"+IF(F40=\"X\",1,IF(G40=\"x\",0,IF(H40=\"x\",0.5,\" \")))","v":0}]
[null,null,null,"¿Se cuenta con algun sistema de alarma en caso de emergencias?",null,"x",null,null,{"$f":"+IF(F41=\"X\",1,IF(G41=\"x\",0,IF(H41=\"x\",0.5,\" \")))","v":1}]
[null,null,null,"¿Se cuenta con sistemas automáticos de detección y control de incendios en la sede?",null,null,"X",null,0]
[null,null,null,"¿Se cuenta con sistema de control de mitigacion de la amenaza identificada?",null,null,"x",null,0]
[null,null,null,"¿Se cuenta con sistema de comunicaciones internas para la respuesta a emergencias?",null,"X",null,null,1]
[null,null,null,"¿Se cuenta con medios de transporte para el apoyo logistico en una emergencia?",null,"X",null,null,1]
[null,null,null,"Existe suficientes extintores para cubrir las diferentes áreas donde se puede presentar conatos de incendios?",null,null,"x",null,0]
[null,null,null,"¿Se cuenta con botiquin de  primeros auxilios?",null,"X",null,null,1]
[null,null,null,"¿Se cuenta con programa de mantenimiento preventivo para los equipos de emergencia?",null,null,"x",null,0]
[null,null,null,"Promedio equipos",null,null,null,null,{"$f":"AVERAGE(I40:I48)","v":0.44444444444444442},{"$f":"+IF(I49>=0.679,\"Bueno\",IF(AND(I49>=0.339,I49<=0.669),\"Regular\",IF(I49<=0.33,\"Malo\",\"error\")))","v":"Regular"}]
[]
[null,null,null,"Suma total promedios - calificación de riesgo para recursos",null,null,null,null,{"$f":"+SUM(I49+I35+I20)","v":1.3819444444444444},{"$f":"+IF(I51<=1,\"Alta\",IF(AND(I51>1.01,I51<2),\"Media\",IF(I51>=2.01,\"Baja\",\"error\")))","v":"Media"}]

{"sheet":"PLAN DE EVACUACIÓN","index":9,"n_rows":114,"n_cols":19,"rows_kept":114,"cut":false,"hidden":true,"merged":[[102,7,104,16],[95,4,95,6],[96,4,98,5],[99,4,101,5],[102,4,104,5],[102,6,104,6],[39,4,39,18],[43,4,43,18],[44,4,53,18],[40,4,40,5],[40,6,40,18],[41,4,41,5],[41,6,41,18],[105,7,107,16],[108,7,110,16],[105,4,107,5],[108,4,110,5],[111,6,113,6],[108,6,110,6],[105,6,107,6],[111,4,113,5],[111,7,113,16],[99,6,101,6],[95,17,95,18],[96,6,98,6],[99,7,101,16],[20,4,20,18],[21,4,21,18],[22,4,22,18],[23,4,23,6],[23,7,23,18],[37,4,37,18],[38,4,38,18],[93,4,93,18],[95,7,95,16],[96,7,98,16],[55,4,64,18],[65,4,65,18],[36,4,36,18],[31,4,31,18],[32,4,32,18],[33,4,33,5],[33,6,33,18],[34,4,34,5],[34,6,34,18],[35,4,35,18],[29,7,29,18],[30,4,30,18],[12,6,15,18],[16,4,19,5],[16,6,19,18],[29,4,29,6],[12,4,15,5],[75,4,75,18],[76,4,92,18],[42,4,42,5],[42,6,42,18],[54,4,54,18],[66,4,74,18],[28,4,28,6],[28,7,28,18],[27,4,27,6],[27,7,27,18],[2,4,4,5],[2,6,2,17],[3,6,4,17],[6,4,6,18],[7,4,7,18],[8,4,11,5],[8,6,11,18],[2,18,4,18],[24,4,24,6],[24,7,24,18],[25,4,25,6],[25,7,25,18],[26,4,26,6],[26,7,26,18]]}
[]
[]
[null,null,null,null,null,null,"SISTEMA DE GESTIÓN EN SEGURIDAD Y SALUD EN EL TRABAJO"]
[null,null,null,null,null,null,"PLAN DE EVACUACIÓN"]
[]
[]
[null,null,null,null,"RUTAS DE EVACUACIÒN"]
[null,null,null,null,"Descripción"]
[null,null,null,null,"Evacuación Parcial",null,"La puede ordenar el brigadista que atienda el evento o quien esté a cargo del piso o el área donde sucede la emergencia. "]
[]
[]
[]
[null,null,null,null,"Evacuación Total",null,"La puede ordenar el Comité de emergencia empresarial, un miembro del comité de emergencia empresarial, el jefe de emergencia o el líder de brigada de emergencia en caso de ausencia de alguno de los anteriores cargos"]
[]
[]
[]
[null,null,null,null,"Alarma",null,"  se cuenta con pitos que sonaran de manera continua hasta que sea escuchado por el personal."]
[]
[]
[]
[null,null,null,null,"Observaciones generales"]
[null,null,null,null,"Aplicar Sistema comando de Incidentes"]
[null,null,null,null,"ESCALERAS DE EMERGENCIA"]
[null,null,null,null,"UBICACIÓN ESCALERA",null,null,"DEPENDENCIAS, AREAS U OFICINAS QUE EVACUAN USAN ESA SALIDA"]
[null,null,null,null,"Oficina Secretaria de Cultura",null,null,"Evacuaran por la escalera y al llegar a la puerta de acceso principal, se ubican en el anden de la secretaria de cultura."]
[null,null,null,null,"Ludoteca ",null,null,"Evacuaran por la escalera y al llegar a la puerta de acceso principal, se ubican en el anden de la secretaria de cultura."]
[null,null,null,null,"Archivo Universidad del Tolima",null,null,"Evacuaran por la escalera y al llegar a la puerta de acceso principal, se ubican en el anden de la secretaria de cultura."]
[null,null,null,null,"Biblioteca ",null,null,"Evacuaran por la escalera y al llegar a la puerta de acceso principal, se ubican en el anden de la secretaria de cultura."]
[null,null,null,null,"Servicios Generales",null,null,"Evacuaran por la escalera y al llegar a la puerta de acceso principal, se ubican en el anden de la secretaria de cultura."]
[null,null,null,null,"Auditorio",null,null,"Evacuaran por la escalera y al llegar a la puerta de acceso principal, se ubican en el anden de la secretaria de cultura."]
[null,null,null,null,"Observaciones generales"]
[null,null,null,null,"Aplicar Sistema comando de Incidentes"]
[null,null,null,null,"SALIDAS EMERGENCIA"]
[null,null,null,null,"UBICACIÓN",null,"DEPENDENCIAS, AREAS U OFICINAS QUE EVACUAN USAN ESA SALIDA."]
[null,null,null,null,"Puerta principal",null,"Primer piso, puerta de vidrio, permanece cerrada, pero el guarda permanece en la entrada."]
[null,null,null,null,"Observaciones generales"]
[null,null,null,null,"Aplicar Sistema comando de Incidentes"]
[null,null,null,null,"RUTAS  EVACUACION"]
[null,null,null,null,"La puerta principal de ingreso y/o salida de las instalaciones se convierte en la posible salida de emergencia, y la puerta posterior ubicada en la parte interna de la oficina de patrimonio se puede habilitar como una salida de emergencia alterna, misma que conduciría a las escaleras de la concha acustica."]
[null,null,null,null,"PUNTOS DE ENCUENTRO"]
[null,null,null,null,"Punto No. 1",null,"Anden externo"]
[null,null,null,null,"Punto No. 2",null,"Zona de parqueaderos del Parque Centenario (sugerido) "]
[null,null,null,null,"Punto No. 3",null,"Plaza de Bolívar"]
[null,null,null,null,"PLANOS DE EVACUACIÓN PRIMER PISO"]
[]
[]
[]
[]
[]
[]
[]
[]
[]
[]
[null,null,null,null,"PLANOS DE EVACUACIÓN SEGUNDO PISO"]
[]
[]
[]
[]
[]
[]
[]
[]
[]
[]
[null,null,null,null,"PLANOS DE EVACUACIÓN TERCER PISO"]
[]
[]
[]
[]
[]
[]
[]
[]
[]
[null,null,null,null,"ESQUEMA ORGANIZACIONAL"]
[]
[]
[]
[]
[]
[]
[]
[]
[]
[]
[]
[]
[]
[]
[]
[]
[]
[null,null,null,null,"DIRECTORIO DE APOYO"]
[]
[null,null,null,null,"Entidad",null,null,"Apoyo prestado",null,null,null,null,null,null,null,null,null,"Información de contacto"]
[null,null,null,null,null,null,"Linea de Emergencias","Coordinacion",null,null,null,null,null,null,null,null,null,"Nombre","Metib"]
[null,null,null,null,null,null,null,null,null,null,null,null,null,null,null,null,null,"Ubicación","Cra. 2a #221"]
[null,null,null,null,null,null,null,null,null,null,null,null,null,null,null,null,null,"Teléfono",123]
[null,null,null,null,null,null,"Estación de bomberos Oficiales ","CoordinacionBúsqueda, rescate, control incendios estructurales vehiculares forestales, derrames y fugas químicas",null,null,null,null,null,null,null,null,null,"Nombre","Comandante de guardia de turno"]
[null,null,null,null,null,null,null,null,null,null,null,null,null,null,null,null,null,"Ubicación","CALLE 21 CON CRA 4 ESTADIO"]
[null,null,null,null,null,null,null,null,null,null,null,null,null,null,null,null,null,"Teléfono","2611419-119\n3115539697\n"]
[null,null,null,null,null,null,"Estación de bomberos Voluntarios ","CoordinacionBúsqueda, rescate, control incendios estructurales vehiculares forestales, derrames y fugas químicas",null,null,null,null,null,null,null,null,null,"Nombre","Comandante de guardia de turno"]
[null,null,null,null,null,null,null,null,null,null,null,null,null,null,null,null,null,"Ubicación","CALLE 113 No 50-64"]
[null,null,null,null,null,null,null,null,null,null,null,null,null,null,null,null,null,"Teléfono","2693333-3003667989"]
[null,null,null,null,null,null,"Defensa Civil","Búsqueda y Rescate.",null,null,null,null,null,null,null,null,null,"Nombre","Operador de turno"]
[null,null,null,null,null,null,null,null,null,null,null,null,null,null,null,null,null,"Ubicación","CARRERA 2 No 42-91"]
[null,null,null,null,null,null,null,null,null,null,null,null,null,null,null,null,null,"Teléfono","2658286-3118084418"]
[null,null,null,null,null,null,"Cruz Roja","Búsqueda y Rescate.",null,null,null,null,null,null,null,null,null,"Nombre","Operador de turno"]
[null,null,null,null,null,null,null,null,null,null,null,null,null,null,null,null,null,"Ubicación","CALLE 39 No 5-40"]
[null,null,null,null,null,null,null,null,null,null,null,null,null,null,null,null,null,"Teléfono","2659467-3124578347"]
[null,null,null,null,null,null,"CRUET","Ambulancias",null,null,null,null,null,null,null,null,null,"Nombre","Operador de turno"]
[null,null,null,null,null,null,null,null,null,null,null,null,null,null,null,null,null,"Ubicación","Gobernación del Tolima, en el 6 piso"]
[null,null,null,null,null,null,null,null,null,null,null,null,null,null,null,null,null,"Teléfono","2623150 - 119\n"]